[Event "Hunan Belt and Road Open 2019"]
[Site "Hunan"]
[Date "2019.07.29"]
[Round "1.25"]
[White "Ju, Wenjun"]
[Black "Raja Harshit"]
[Result "1/2-1/2"]
[ECO "D30"]
[WhiteElo "2595"]
[BlackElo "2434"]
[Annotator "ChessBase"]
[PlyCount "144"]
[EventDate "2019.07.29"]
[EventType "swiss"]
[EventCountry "CHN"]
[SourceTitle "playchess.com"]
[Source "ChessBase"]
[SourceQuality "1"]
[TimeControl "5400+30"]

1. d4 {[%emt 0:00:00]} Nf6 {[%emt 0:00:00]} 2. c4 {[%emt 0:00:00]} e6 {[%emt 0:00:19]} 3. Nf3 {[%emt 0:00:22]} d5 {[%emt 0:00:13]} 4. e3 {[%emt 0:00:07]} c5 {[%emt 0:01:11]} 5. cxd5 {[%emt 0:00:50]} exd5 {[%emt 0:01:03]} 6. Bb5+ {[%emt 0:00:08]} Nbd7 {[%emt 0:00:48]} 7. dxc5 {[%emt 0:00:41]} Bxc5 {[%emt 0:10:29]} 8. O-O {[%emt 0:02:15]} O-O {[%emt 0:01:05]} 9. Nc3 {[%emt 0:09:51]} Nb6 {[%emt 0:04:56]} 10. b3 {[%emt 0:02:41]} Bg4 {[%emt 0:06:31]} 11. Bb2 {[%emt 0:01:54]} Qe7 {[%emt 0:11:48]} 12. Ne2 {[%emt 0:01:08]} a6 {[%emt 0:16:30]} 13. Bd3 {[%emt 0:00:00]} Ne4 {[%emt 0:04:42]} 14. h3 {[%emt 0:08:28]} Bh5 {[%emt 0:05:26]} 15. Kh1 {[%emt 0:26:35]} Ba3 {[%emt 0:20:22]} 16. Bd4 {[%emt 0:15:59]} Bc5 {[%emt 0:00:06]} 17. Bxc5 {[%emt 0:04:43]} Qxc5 {[%emt 0:00:40]} 18. Nfd4 {[%emt 0:00:05]} Rac8 {[%emt 0:03:40]} 19. f3 {[%emt 0:01:15]} Nf6 {[%emt 0:03:44]} 20. Qd2 {[%emt 0:00:34]} Bg6 {[%emt 0:00:26]} 21. Rac1 {[%emt 0:01:56]} Qa3 {[%emt 0:00:20]} 22. Nf4 {[%emt 0:02:06]} Rfe8 {[%emt 0:00:46]} 23. Kg1 {[%emt 0:04:20]} Bxd3 {[%emt 0:02:18]} 24. Nxd3 {[%emt 0:00:04]} Nbd7 {[%emt 0:00:47]} 25. Rfe1 {[%emt 0:00:50]} h6 {[%emt 0:01:47]} 26. Nf4 {[%emt 0:00:20]} Qd6 {[%emt 0:01:10]} 27. Rxc8 {[%emt 0:03:32]} Rxc8 {[%emt 0:00:01]} 28. Nf5 {[%emt 0:01:16]} Qe5 {[%emt 0:01:27]} 29. Nxd5 {[%emt 0:00:07]} Nxd5 {[%emt 0:00:39]} 30. Qxd5 {[%emt 0:00:02]} Qxd5 {[%emt 0:00:21]} 31. Ne7+ {[%emt 0:00:03]} Kh7 {[%emt 0:00:34]} 32. Nxd5 {[%emt 0:00:02]} Rc2 {[%emt 0:00:07]} 33. Rd1 {[%emt 0:03:01]} Ne5 {[%emt 0:05:24]} 34. Nb4 {[%emt 0:05:45]} Re2 {[%emt 0:00:00]} 35. Rd5 {[%emt 0:00:24]} Ng6 {[%emt 0:00:00]} 36. Rd7 {[%emt 0:00:55]} Nh4 {[%emt 0:00:00]} 37. Kf1 {[%emt 0:00:15]} Rb2 {[%emt 0:00:00]} 38. Rxf7 {[%emt 0:01:38]} Nxg2 {[%emt 0:00:00]} 39. Nd5 {[%emt 0:00:04]} Nh4 {[%emt 0:00:00]} 40. e4 {[%emt 0:01:17]} Rxa2 {[%emt 0:00:00]} 41. e5 {[%emt 0:00:50]} Rd2 {[%emt 0:00:16]} 42. Nc7 {[%emt 0:00:59]} Rd3 {[%emt 0:00:32]} 43. e6 {[%emt 0:00:15]} Ng6 {[%emt 0:00:13]} 44. Ne8 {[%emt 0:01:17]} Kg8 {[%emt 0:00:01]} 45. Rxb7 {[%emt 0:01:43]} Rxf3+ {[%emt 0:00:55]} 46. Ke2 {[%emt 0:00:17]} Rxh3 {[%emt 0:00:06]} 47. Nxg7 {[%emt 0:00:38]} Nf4+ {[%emt 0:01:12]} 48. Kd2 {[%emt 0:00:26]} Rd3+ {[%emt 0:00:32]} 49. Kc2 {[%emt 0:00:28]} Nxe6 {[%emt 0:00:23]} 50. Nxe6 {[%emt 0:00:09]} Rd6 {[%emt 0:00:08]} 51. Nf4 {[%emt 0:00:52]} Rf6 {[%emt 0:00:38]} 52. Nd5 {[%emt 0:00:39]} Re6 {[%emt 0:00:51]} 53. Kd3 {[%emt 0:00:56]} h5 {[%emt 0:00:15]} 54. Nf4 {[%emt 0:00:05]} Rh6 {[%emt 0:00:11]} 55. Ke4 {[%emt 0:00:24]} h4 {[%emt 0:00:15]} 56. Nh3 {[%emt 0:01:15]} a5 {[%emt 0:00:48]} 57. Kf5 {[%emt 0:01:09]} Ra6 {[%emt 0:00:16]} 58. Nf4 {[%emt 0:00:09]} a4 {[%emt 0:00:24]} 59. Nh5 {[%emt 0:00:11]} h3 {[%emt 0:01:22]} 60. bxa4 {[%emt 0:00:56]} h2 {[%emt 0:00:08]} 61. Rb1 {[%emt 0:00:09]} Rxa4 {[%emt 0:00:17]} 62. Nf6+ {[%emt 0:00:17]} Kf8 {[%emt 0:00:45]} 63. Rh1 {[%emt 0:00:36]} Kf7 {[%emt 0:00:19]} 64. Ng4 {[%emt 0:00:02]} Ra2 {[%emt 0:00:18]} 65. Nxh2 {[%emt 0:00:05]} Ra5+ {[%emt 0:00:07]} 66. Kg4 {[%emt 0:00:01]} Ke6 {[%emt 0:00:17]} 67. Nf3 {[%emt 0:00:01]} Ra4+ {[%emt 0:00:08]} 68. Kg3 {[%emt 0:00:01]} Kd5 {[%emt 0:00:19]} 69. Rd1+ {[%emt 0:00:06]} Ke6 {[%emt 0:00:29]} 70. Rd3 {[%emt 0:00:14]} Kf5 {[%emt 0:00:45]} 71. Re3 {[%emt 0:00:25]} Rg4+ {[%emt 0:00:43]} 72. Kf2 {[%emt 0:00:02]} Ra4 {[%emt 0:00:24]} 1/2-1/2

[Event "Hunan Belt and Road Open 2019"]
[Site "Hunan"]
[Date "2019.07.29"]
[Round "1.26"]
[White "Batsiashvili, Nino"]
[Black "Wen, Yang"]
[Result "1/2-1/2"]
[ECO "E39"]
[WhiteElo "2433"]
[BlackElo "2586"]
[Annotator "ChessBase"]
[PlyCount "64"]
[EventDate "2019.07.29"]
[EventType "swiss"]
[EventCountry "CHN"]
[SourceTitle "playchess.com"]
[Source "ChessBase"]
[SourceQuality "1"]
[TimeControl "5400+30"]

1. d4 {[%emt 0:00:00]} Nf6 {[%emt 0:00:09]} 2. c4 {[%emt 0:00:00]} e6 {[%emt 0:00:22]} 3. Nc3 {[%emt 0:00:00]} Bb4 {[%emt 0:00:17]} 4. Qc2 {[%emt 0:00:00]} c5 {[%emt 0:03:11]} 5. dxc5 {[%emt 0:00:00]} O-O {[%emt 0:00:09]} 6. Nf3 {[%emt 0:02:01]} Na6 {[%emt 0:00:09]} 7. g3 {[%emt 0:00:20]} Nxc5 {[%emt 0:00:09]} 8. Bg2 {[%emt 0:00:28]} Nce4 {[%emt 0:00:27]} 9. O-O {[%emt 0:00:55]} Bxc3 {[%emt 0:00:11]} 10. bxc3 {[%emt 0:00:08]} Qc7 {[%emt 0:00:04]} 11. Ng5 {[%emt 0:13:24]} Nc5 {[%emt 0:15:40]} 12. Ba3 {[%emt 0:07:31]} Rb8 {[%emt 0:01:02]} 13. Rad1 {[%emt 0:10:08]} b6 {[%emt 0:01:45]} 14. Ne4 {[%emt 0:03:01]} Nfxe4 {[%emt 0:03:10]} 15. Bxe4 {[%emt 0:00:01]} f5 {[%emt 0:00:14]} 16. Bg2 {[%emt 0:01:37]} Rf7 {[%emt 0:01:17]} 17. Rd4 {[%emt 0:04:36]} Ba6 {[%emt 0:17:18]} 18. Rfd1 {[%emt 0:17:30]} e5 {[%emt 0:18:24]} 19. Rd6 {[%emt 0:00:22]} Bxc4 {[%emt 0:00:09]} 20. Bxc5 {[%emt 0:13:18]} bxc5 {[%emt 0:01:14]} 21. Bd5 {[%emt 0:03:41]} Bxd5 {[%emt 0:00:08]} 22. R6xd5 {[%emt 0:00:02]} Rb6 {[%emt 0:06:13]} 23. Qd2 {[%emt 0:04:18]} Ra6 {[%emt 0:00:09]} 24. e3 {[%emt 0:04:06]} g6 {[%emt 0:08:31]} 25. Rxd7 {[%emt 0:03:43]} Rxd7 {[%emt 0:00:11]} 26. Qxd7 {[%emt 0:00:05]} Qxd7 {[%emt 0:00:07]} 27. Rxd7 {[%emt 0:00:06]} Rxa2 {[%emt 0:02:33]} 28. Rd5 {[%emt 0:00:00]} c4 {[%emt 0:02:03]} 29. Rxe5 {[%emt 0:01:35]} Ra3 {[%emt 0:00:06]} 30. Re7 {[%emt 0:00:34]} a5 {[%emt 0:00:20]} 31. Ra7 {[%emt 0:00:20]} Rxc3 {[%emt 0:11:22]} 32. Rxa5 {[%emt 0:00:03]} Rc2 {[%emt 0:03:10]} 1/2-1/2

[Event "Hunan Belt and Road Open 2019"]
[Site "Hunan"]
[Date "2019.07.29"]
[Round "1.27"]
[White "Xu, Xiangyu"]
[Black "Fang, Yan"]
[Result "1/2-1/2"]
[ECO "E09"]
[WhiteElo "2585"]
[BlackElo "2424"]
[Annotator "ChessBase"]
[PlyCount "106"]
[EventDate "2019.07.29"]
[EventType "swiss"]
[EventCountry "CHN"]
[SourceTitle "playchess.com"]
[Source "ChessBase"]
[SourceQuality "1"]
[TimeControl "5400+30"]

1. Nf3 {[%emt 0:00:00]} Nf6 {[%emt 0:00:00]} 2. g3 {[%emt 0:00:15]} d5 {[%emt 0:00:17]} 3. Bg2 {[%emt 0:00:17]} e6 {[%emt 0:00:09]} 4. d4 {[%emt 0:00:41]} Be7 {[%emt 0:00:41]} 5. c4 {[%emt 0:00:17]} O-O {[%emt 0:00:29]} 6. Qc2 {[%emt 0:06:53]} c6 {[%emt 0:03:04]} 7. Nbd2 {[%emt 0:01:22]} Nbd7 {[%emt 0:00:21]} 8. O-O {[%emt 0:04:36]} b6 {[%emt 0:01:19]} 9. b3 {[%emt 0:00:08]} Bb7 {[%emt 0:00:36]} 10. Bb2 {[%emt 0:00:10]} Rc8 {[%emt 0:01:30]} 11. Rad1 {[%emt 0:07:39]} Qc7 {[%emt 0:18:32]} 12. e4 {[%emt 0:15:14]} Rfd8 {[%emt 0:17:00]} 13. Rfe1 {[%emt 0:08:01]} h6 {[%emt 0:19:24]} 14. e5 {[%emt 0:13:35]} Ne8 {[%emt 0:00:19]} 15. cxd5 {[%emt 0:00:09]} cxd5 {[%emt 0:00:10]} 16. Qb1 {[%emt 0:00:06]} Ba6 {[%emt 0:04:40]} 17. a3 {[%emt 0:01:36]} Qb7 {[%emt 0:05:27]} 18. h4 {[%emt 0:01:12]} Rc6 {[%emt 0:04:03]} 19. Re3 {[%emt 0:02:43]} Rdc8 {[%emt 0:01:18]} 20. Ne1 {[%emt 0:05:09]} Bb5 {[%emt 0:05:44]} 21. Ndf3 {[%emt 0:07:03]} a5 {[%emt 0:01:13]} 22. h5 {[%emt 0:02:51]} Nf8 {[%emt 0:04:44]} 23. Rd2 {[%emt 0:01:47]} a4 {[%emt 0:02:30]} 24. b4 {[%emt 0:00:20]} Nc7 {[%emt 0:01:20]} 25. Qd1 {[%emt 0:01:13]} Nh7 {[%emt 0:01:07]} 26. Rc2 {[%emt 0:05:52]} Rxc2 {[%emt 0:03:08]} 27. Qxc2 {[%emt 0:00:07]} Ne8 {[%emt 0:00:53]} 28. Qd1 {[%emt 0:00:19]} Qd7 {[%emt 0:00:19]} 29. Nd2 {[%emt 0:00:50]} Kh8 {[%emt 0:02:46]} 30. f4 {[%emt 0:00:33]} f5 {[%emt 0:00:25]} 31. exf6 {[%emt 0:00:32]} Bxf6 {[%emt 0:01:14]} 32. Bh3 {[%emt 0:00:08]} Nf8 {[%emt 0:00:08]} 33. Nef3 {[%emt 0:03:33]} Nd6 {[%emt 0:00:08]} 34. Ne5 {[%emt 0:03:26]} Qc7 {[%emt 0:01:07]} 35. Rc3 {[%emt 0:01:33]} Qd8 {[%emt 0:00:07]} 36. Nb1 {[%emt 0:02:22]} Bxe5 {[%emt 0:00:49]} 37. dxe5 {[%emt 0:02:17]} Ne4 {[%emt 0:00:23]} 38. Re3 {[%emt 0:00:12]} Bc4 {[%emt 0:00:43]} 39. Nd2 {[%emt 0:00:25]} Nxd2 {[%emt 0:00:42]} 40. Qxd2 {[%emt 0:00:03]} Qe8 {[%emt 0:00:32]} 41. Bg4 {[%emt 0:00:15]} Bb3 {[%emt 0:00:35]} 42. Bc3 {[%emt 0:00:43]} Qb5 {[%emt 0:00:33]} 43. f5 {[%emt 0:00:29]} exf5 {[%emt 0:00:08]} 44. Bxf5 {[%emt 0:00:05]} d4 {[%emt 0:00:30]} 45. Bxc8 {[%emt 0:04:16]} dxe3 {[%emt 0:00:02]} 46. Qxe3 {[%emt 0:00:16]} Ne6 {[%emt 0:00:41]} 47. Bb7 {[%emt 0:00:30]} Bd5 {[%emt 0:00:26]} 48. Bxd5 {[%emt 0:01:22]} Qxd5 {[%emt 0:00:02]} 49. Qxb6 {[%emt 0:00:33]} Qd1+ {[%emt 0:00:09]} 50. Kf2 {[%emt 0:00:07]} Qc2+ {[%emt 0:00:22]} 51. Kg1 {[%emt 0:00:09]} Qd1+ {[%emt 0:00:42]} 52. Kf2 {[%emt 0:00:07]} Qc2+ {[%emt 0:00:04]} 53. Kg1 {[%emt 0:00:05]} Qd1+ {[%emt 0:00:05]} 1/2-1/2

[Event "Hunan Belt and Road Open 2019"]
[Site "Hunan"]
[Date "2019.07.29"]
[Round "1.28"]
[White "Xie, Jianjun"]
[Black "Xu, Yinglun"]
[Result "1/2-1/2"]
[ECO "B22"]
[WhiteElo "2417"]
[BlackElo "2562"]
[Annotator "ChessBase"]
[PlyCount "72"]
[EventDate "2019.07.29"]
[EventType "swiss"]
[EventCountry "CHN"]
[SourceTitle "playchess.com"]
[Source "ChessBase"]
[SourceQuality "1"]
[TimeControl "5400+30"]

1. e4 {[%emt 0:00:36]} c5 {[%emt 0:00:00]} 2. c3 {[%emt 0:00:21]} d5 {[%emt 0:00:51]} 3. exd5 {[%emt 0:00:06]} Qxd5 {[%emt 0:00:05]} 4. d4 {[%emt 0:00:04]} e6 {[%emt 0:02:54]} 5. Nf3 {[%emt 0:02:17]} Nf6 {[%emt 0:01:34]} 6. Na3 {[%emt 0:03:14]} Nc6 {[%emt 0:00:24]} 7. Be3 {[%emt 0:00:29]} cxd4 {[%emt 0:04:34]} 8. Nb5 {[%emt 0:00:07]} Qd7 {[%emt 0:06:04]} 9. Nbxd4 {[%emt 0:09:42]} a6 {[%emt 0:01:32]} 10. Bd3 {[%emt 0:06:00]} Bc5 {[%emt 0:07:37]} 11. O-O {[%emt 0:00:39]} Nxd4 {[%emt 0:00:32]} 12. cxd4 {[%emt 0:02:57]} Be7 {[%emt 0:02:02]} 13. Ne5 {[%emt 0:00:46]} Qd5 {[%emt 0:00:47]} 14. Bc4 {[%emt 0:03:04]} Qd6 {[%emt 0:01:40]} 15. Bf4 {[%emt 0:09:22]} Qd8 {[%emt 0:01:16]} 16. Re1 {[%emt 0:16:28]} O-O {[%emt 0:01:59]} 17. Bg5 {[%emt 0:00:05]} Bd7 {[%emt 0:06:30]} 18. Qf3 {[%emt 0:00:52]} Bc6 {[%emt 0:05:29]} 19. Nxc6 {[%emt 0:03:20]} bxc6 {[%emt 0:00:45]} 20. Qxc6 {[%emt 0:12:20]} Qxd4 {[%emt 0:00:17]} 21. Bxa6 {[%emt 0:00:20]} Qxb2 {[%emt 0:06:11]} 22. a4 {[%emt 0:00:08]} Nd5 {[%emt 0:00:59]} 23. Bxe7 {[%emt 0:00:44]} Nxe7 {[%emt 0:00:03]} 24. Qb7 {[%emt 0:00:54]} Rfb8 {[%emt 0:01:23]} 25. Qxb2 {[%emt 0:07:24]} Rxb2 {[%emt 0:00:06]} 26. Reb1 {[%emt 0:02:06]} Rxb1+ {[%emt 0:00:29]} 27. Rxb1 {[%emt 0:02:09]} Kf8 {[%emt 0:00:47]} 28. Bb5 {[%emt 0:00:15]} Nd5 {[%emt 0:02:42]} 29. Bc6 {[%emt 0:01:20]} Ra5 {[%emt 0:00:06]} 30. Rb8+ {[%emt 0:02:17]} Ke7 {[%emt 0:00:08]} 31. Rb7+ {[%emt 0:00:04]} Kd6 {[%emt 0:00:50]} 32. Bb5 {[%emt 0:03:26]} Nc7 {[%emt 0:00:24]} 33. g3 {[%emt 0:00:20]} g5 {[%emt 0:01:04]} 34. Rb6+ {[%emt 0:00:30]} Ke7 {[%emt 0:02:59]} 35. Rb7 {[%emt 0:00:48]} Kd6 {[%emt 0:00:04]} 36. Rb6+ {[%emt 0:00:35]} Kd5 {[%emt 0:00:16]} 1/2-1/2

[Event "Hunan Belt and Road Open 2019"]
[Site "Hunan"]
[Date "2019.07.29"]
[Round "1.29"]
[White "Zeng, Chongsheng"]
[Black "Chen, Qi b"]
[Result "1/2-1/2"]
[ECO "C54"]
[WhiteElo "2551"]
[BlackElo "2414"]
[Annotator "ChessBase"]
[PlyCount "160"]
[EventDate "2019.07.29"]
[EventType "swiss"]
[EventCountry "CHN"]
[SourceTitle "playchess.com"]
[Source "ChessBase"]
[SourceQuality "1"]
[TimeControl "5400+30"]

1. e4 {[%emt 0:00:00]} e5 {[%emt 0:00:00]} 2. Nf3 {[%emt 0:00:00]} Nc6 {[%emt 0:00:00]} 3. Bc4 {[%emt 0:00:00]} Bc5 {[%emt 0:00:00]} 4. c3 {[%emt 0:00:00]} Nf6 {[%emt 0:00:00]} 5. d3 {[%emt 0:00:02]} d6 {[%emt 0:00:01]} 6. a4 {[%emt 0:00:18]} a5 {[%emt 0:00:16]} 7. O-O {[%emt 0:01:24]} O-O {[%emt 0:00:07]} 8. Na3 {[%emt 0:05:30]} h6 {[%emt 0:03:34]} 9. Re1 {[%emt 0:04:35]} Be6 {[%emt 0:05:23]} 10. Bxe6 {[%emt 0:04:17]} fxe6 {[%emt 0:00:04]} 11. Qb3 {[%emt 0:00:10]} Qd7 {[%emt 0:02:56]} 12. Nc2 {[%emt 0:01:27]} Bb6 {[%emt 0:07:02]} 13. Qb5 {[%emt 0:04:53]} Ne7 {[%emt 0:15:30]} 14. Na3 {[%emt 0:08:28]} Bc5 {[%emt 0:15:43]} 15. Qxd7 {[%emt 0:01:04]} Nxd7 {[%emt 0:00:06]} 16. Nc4 {[%emt 0:00:11]} Nb6 {[%emt 0:07:14]} 17. Ncd2 {[%emt 0:04:24]} Nd7 {[%emt 0:00:36]} 18. Re2 {[%emt 0:02:12]} Nc6 {[%emt 0:08:53]} 19. Nb3 {[%emt 0:02:54]} Bb6 {[%emt 0:00:18]} 20. Bd2 {[%emt 0:01:32]} Nc5 {[%emt 0:02:08]} 21. Nxc5 {[%emt 0:00:10]} Bxc5 {[%emt 0:00:05]} 22. Be1 {[%emt 0:02:55]} Rf7 {[%emt 0:03:58]} 23. Nd2 {[%emt 0:00:48]} g5 {[%emt 0:01:33]} 24. h3 {[%emt 0:02:56]} Raf8 {[%emt 0:01:19]} 25. g3 {[%emt 0:04:46]} Kh7 {[%emt 0:00:08]} 26. Kg2 {[%emt 0:00:35]} h5 {[%emt 0:04:30]} 27. Rd1 {[%emt 0:01:32]} Bb6 {[%emt 0:03:24]} 28. Nc4 {[%emt 0:00:22]} Ba7 {[%emt 0:07:40]} 29. Na3 {[%emt 0:04:39]} Rf3 {[%emt 0:00:00]} 30. Nb5 {[%emt 0:05:02]} Bb6 {[%emt 0:00:23]} 31. d4 {[%emt 0:00:30]} Kg6 {[%emt 0:01:09]} 32. Re3 {[%emt 0:10:04]} R3f7 {[%emt 0:01:07]} 33. Re2 {[%emt 0:07:09]} Rf3 {[%emt 0:00:17]} 34. d5 {[%emt 0:03:09]} exd5 {[%emt 0:00:12]} 35. exd5 {[%emt 0:00:01]} Nb8 {[%emt 0:00:35]} 36. Na3 {[%emt 0:00:43]} Nd7 {[%emt 0:00:42]} 37. Nc4 {[%emt 0:00:06]} R3f7 {[%emt 0:03:53]} 38. b4 {[%emt 0:01:16]} Ra8 {[%emt 0:02:07]} 39. Rb1 {[%emt 0:06:11]} axb4 {[%emt 0:01:41]} 40. a5 {[%emt 0:00:01]} Bc5 {[%emt 0:00:50]} 41. cxb4 {[%emt 0:00:56]} Bd4 42. Na3 {[%emt 0:02:53]} Nf6 {[%emt 0:00:18]} 43. Nb5 {[%emt 0:00:00]} Nxd5 {[%emt 0:00:27]} 44. Rd1 {[%emt 0:01:51]} Rf5 {[%emt 0:01:35]} 45. Nxd4 {[%emt 0:00:00]} exd4 {[%emt 0:01:21]} 46. Rxd4 {[%emt 0:00:00]} c5 {[%emt 0:01:30]} 47. bxc5 dxc5 48. Rc4 {[%emt 0:01:22]} Ra6 {[%emt 0:03:31]} 49. Re8 {[%emt 0:00:45]} b5 {[%emt 0:00:46]} 50. axb6 {[%emt 0:01:30]} Rxb6 {[%emt 0:01:01]} 51. Rg8+ {[%emt 0:00:33]} Kf7 {[%emt 0:00:20]} 52. Rc8 {[%emt 0:00:54]} Rb1 53. Re4 {[%emt 0:02:01]} Rb7 54. Rh8 {[%emt 0:02:22]} Nf6 55. Ra4 {[%emt 0:02:42]} Re7 {[%emt 0:00:24]} 56. Bd2 {[%emt 0:00:00]} Re8 57. Ra7+ {[%emt 0:00:00]} Kg6 {[%emt 0:00:00]} 58. Rxe8 {[%emt 0:00:00]} Nxe8 59. Ra6+ {[%emt 0:00:00]} Rf6 60. Ra5 {[%emt 0:00:41]} Rc6 61. Be3 {[%emt 0:01:11]} Nd6 {[%emt 0:00:15]} 62. Ra8 {[%emt 0:00:45]} Nf7 {[%emt 0:00:17]} 63. Kf3 {[%emt 0:00:27]} c4 64. Ke2 {[%emt 0:00:49]} c3 65. Ra5 {[%emt 0:02:12]} c2 {[%emt 0:03:26]} 66. Bc1 {[%emt 0:00:20]} h4 {[%emt 0:00:54]} 67. gxh4 {[%emt 0:00:00]} gxh4 {[%emt 0:00:01]} 68. Ra4 {[%emt 0:00:17]} Re6+ {[%emt 0:00:07]} 69. Kd3 {[%emt 0:00:30]} Rf6 {[%emt 0:00:24]} 70. Rg4+ {[%emt 0:00:31]} Kh5 {[%emt 0:00:44]} 71. f4 {[%emt 0:00:01]} Rc6 {[%emt 0:00:32]} 72. Rg7 {[%emt 0:00:37]} Rc7 {[%emt 0:00:33]} 73. Rh7+ {[%emt 0:01:33]} Kg6 {[%emt 0:00:03]} 74. Rxh4 {[%emt 0:00:05]} Nh6 {[%emt 0:00:20]} 75. Kd2 {[%emt 0:01:19]} Rc6 {[%emt 0:00:33]} 76. Ba3 {[%emt 0:00:37]} Rc8 {[%emt 0:00:57]} 77. Kc1 {[%emt 0:00:28]} Rc6 {[%emt 0:00:31]} 78. Bb2 {[%emt 0:00:30]} Rc8 {[%emt 0:00:17]} 79. f5+ {[%emt 0:01:06]} Nxf5 {[%emt 0:00:04]} 80. Re4 {[%emt 0:00:05]} Rc5 {[%emt 0:00:26]} 1/2-1/2

[Event "Hunan Belt and Road Open 2019"]
[Site "Hunan"]
[Date "2019.07.29"]
[Round "1.30"]
[White "Setyaki, Azarya Jodi"]
[Black "Lagno, Kateryna"]
[Result "0-1"]
[ECO "C72"]
[WhiteElo "2409"]
[BlackElo "2549"]
[Annotator "ChessBase"]
[PlyCount "186"]
[EventDate "2019.07.29"]
[EventType "swiss"]
[EventCountry "CHN"]
[SourceTitle "playchess.com"]
[Source "ChessBase"]
[SourceQuality "1"]
[TimeControl "5400+30"]

1. e4 {[%emt 0:00:00]} e5 {[%emt 0:00:00]} 2. Nf3 {[%emt 0:00:00]} Nc6 {[%emt 0:00:00]} 3. Bb5 {[%emt 0:00:00]} a6 {[%emt 0:00:00]} 4. Ba4 {[%emt 0:00:00]} d6 {[%emt 0:00:00]} 5. O-O {[%emt 0:00:03]} Bd7 {[%emt 0:00:00]} 6. d4 {[%emt 0:00:07]} Nxd4 {[%emt 0:00:10]} 7. Bxd7+ {[%emt 0:00:08]} Qxd7 {[%emt 0:00:03]} 8. Nxd4 {[%emt 0:00:05]} exd4 {[%emt 0:00:04]} 9. Qxd4 {[%emt 0:00:04]} Nf6 {[%emt 0:00:06]} 10. Nc3 {[%emt 0:00:41]} Be7 {[%emt 0:00:17]} 11. Bg5 {[%emt 0:00:21]} h6 {[%emt 0:16:36]} 12. Bh4 {[%emt 0:00:49]} Qg4 {[%emt 0:00:23]} 13. Bg3 {[%emt 0:00:15]} O-O {[%emt 0:01:13]} 14. f3 {[%emt 0:03:09]} Qd7 {[%emt 0:05:35]} 15. Rad1 {[%emt 0:03:17]} Nh5 {[%emt 0:01:52]} 16. Bf2 {[%emt 0:00:13]} Qe6 {[%emt 0:08:21]} 17. Nd5 {[%emt 0:06:40]} Bd8 {[%emt 0:00:12]} 18. Qb4 {[%emt 0:28:50]} b5 {[%emt 0:07:33]} 19. Qc3 {[%emt 0:12:15]} Qd7 {[%emt 0:11:57]} 20. e5 {[%emt 0:10:00]} Rc8 {[%emt 0:00:37]} 21. exd6 {[%emt 0:05:45]} cxd6 {[%emt 0:01:21]} 22. Qd3 {[%emt 0:00:39]} Nf6 {[%emt 0:00:56]} 23. c3 {[%emt 0:06:28]} Nxd5 {[%emt 0:00:52]} 24. Qxd5 {[%emt 0:00:02]} Rc6 {[%emt 0:00:30]} 25. Bg3 {[%emt 0:01:19]} Bf6 {[%emt 0:03:28]} 26. a3 {[%emt 0:08:30]} Qa7+ {[%emt 0:07:33]} 27. Kh1 {[%emt 0:04:38]} Qb7 {[%emt 0:01:37]} 28. Rfe1 {[%emt 0:00:57]} Rfc8 {[%emt 0:04:11]} 29. Qe4 {[%emt 0:00:50]} Qb6 {[%emt 0:01:06]} 30. Rd5 {[%emt 0:02:48]} a5 {[%emt 0:04:16]} 31. Qf5 {[%emt 0:01:37]} Rc5 {[%emt 0:03:31]} 32. Bf2 {[%emt 0:00:17]} Qc6 {[%emt 0:01:49]} 33. Bxc5 {[%emt 0:00:42]} dxc5 {[%emt 0:00:02]} 34. Red1 {[%emt 0:03:04]} b4 {[%emt 0:00:44]} 35. h3 {[%emt 0:02:11]} g6 {[%emt 0:11:02]} 36. Qf4 {[%emt 0:00:19]} Bg5 {[%emt 0:04:42]} 37. Qc4 {[%emt 0:00:29]} bxa3 {[%emt 0:01:20]} 38. Rd6 {[%emt 0:00:31]} Qe8 {[%emt 0:00:50]} 39. bxa3 {[%emt 0:00:11]} Kg7 {[%emt 0:00:35]} 40. a4 {[%emt 0:01:05]} Bf6 {[%emt 0:00:29]} 41. Rd7 {[%emt 0:00:37]} Rc6 {[%emt 0:00:31]} 42. Qd5 {[%emt 0:00:30]} Re6 {[%emt 0:00:14]} 43. Qxc5 {[%emt 0:00:11]} Re1+ {[%emt 0:00:22]} 44. Rxe1 {[%emt 0:00:00]} Qxe1+ {[%emt 0:00:04]} 45. Qg1 {[%emt 0:00:07]} Qxc3 {[%emt 0:00:08]} 46. Qd1 {[%emt 0:00:34]} h5 {[%emt 0:00:46]} 47. f4 {[%emt 0:01:42]} h4 {[%emt 0:00:12]} 48. Qf3 {[%emt 0:00:28]} Qc4 {[%emt 0:01:21]} 49. f5 {[%emt 0:00:24]} Qxa4 {[%emt 0:00:26]} 50. Rd1 {[%emt 0:00:21]} g5 {[%emt 0:00:11]} 51. Qd5 {[%emt 0:00:44]} Qb4 {[%emt 0:01:22]} 52. Qa2 {[%emt 0:00:31]} a4 {[%emt 0:00:19]} 53. Rb1 {[%emt 0:00:23]} Qf4 {[%emt 0:00:35]} 54. Rd1 {[%emt 0:00:36]} Qb4 {[%emt 0:01:49]} 55. Rb1 {[%emt 0:00:08]} Qa5 {[%emt 0:00:32]} 56. Rd1 {[%emt 0:00:52]} a3 {[%emt 0:00:13]} 57. Rf1 {[%emt 0:00:28]} Qb5 {[%emt 0:00:26]} 58. Rb1 {[%emt 0:00:04]} Qxf5 {[%emt 0:00:51]} 59. Rd1 Qc5 {[%emt 0:01:05]} 60. Rf1 {[%emt 0:00:32]} Qc3 {[%emt 0:00:24]} 61. Rb1 {[%emt 0:00:18]} Qg3 {[%emt 0:00:30]} 62. Rf1 {[%emt 0:00:53]} Qd3 {[%emt 0:00:42]} 63. Rb1 {[%emt 0:00:39]} Bb2 {[%emt 0:00:19]} 64. Re1 {[%emt 0:00:43]} Kf8 {[%emt 0:00:46]} 65. Rg1 {[%emt 0:00:52]} g4 {[%emt 0:00:47]} 66. hxg4 {[%emt 0:00:05]} h3 {[%emt 0:00:03]} 67. Kh2 {[%emt 0:00:31]} hxg2 {[%emt 0:00:48]} 68. Rxg2 {[%emt 0:00:30]} Qe3 {[%emt 0:01:34]} 69. Rc2 {[%emt 0:00:56]} Qf4+ {[%emt 0:00:26]} 70. Kh3 {[%emt 0:00:14]} Qf3+ {[%emt 0:00:10]} 71. Kh4 {[%emt 0:00:12]} Bf6+ {[%emt 0:00:52]} 72. g5 {[%emt 0:00:04]} Qf4+ {[%emt 0:00:16]} 73. Kh3 {[%emt 0:00:03]} Qf5+ {[%emt 0:00:05]} 74. Kg2 {[%emt 0:00:36]} Qxg5+ {[%emt 0:00:08]} 75. Kf3 {[%emt 0:00:04]} Qf5+ {[%emt 0:00:23]} 76. Ke3 {[%emt 0:00:17]} Qe5+ {[%emt 0:01:13]} 77. Kf3 {[%emt 0:00:21]} Qf5+ {[%emt 0:00:59]} 78. Ke3 {[%emt 0:00:01]} Bb2 {[%emt 0:00:13]} 79. Rf2 {[%emt 0:00:13]} Qe5+ {[%emt 0:00:22]} 80. Kd3 {[%emt 0:01:08]} Qd4+ {[%emt 0:01:00]} 81. Ke2 {[%emt 0:00:02]} Qe4+ {[%emt 0:00:08]} 82. Kf1 {[%emt 0:00:40]} Qd3+ {[%emt 0:00:02]} 83. Kg2 {[%emt 0:00:09]} Qg6+ {[%emt 0:00:03]} 84. Kf1 {[%emt 0:00:06]} Qd3+ {[%emt 0:00:54]} 85. Kg2 {[%emt 0:00:02]} Qe4+ {[%emt 0:00:02]} 86. Kf1 {[%emt 0:00:10]} Qh1+ {[%emt 0:01:06]} 87. Ke2 {[%emt 0:00:01]} Qh5+ {[%emt 0:00:11]} 88. Kf1 {[%emt 0:00:13]} Qb5+ {[%emt 0:01:01]} 89. Kg2 {[%emt 0:00:08]} Qc6+ {[%emt 0:00:15]} 90. Kf1 {[%emt 0:00:15]} f6 {[%emt 0:00:13]} 91. Qb3 {[%emt 0:00:58]} Qa6+ {[%emt 0:00:28]} 92. Ke1 {[%emt 0:01:58]} a2 {[%emt 0:00:47]} 93. Qb8+ {[%emt 0:00:06]} Kf7 {[%emt 0:00:12]} 0-1